bitfinex/quotes_SOLUSD_20240718
["timestamp","ask_amount","ask_price","bid_price","bid_amount"]
[1721342702043,16.1124,160.48,160.43,6.2328]
[1721342702356,14.96,160.44,160.42,21.817]
[1721342703946,14.96,160.43,160.42,21.817]
[1721342704250,14.96,160.43,160.41,6.2339]
[1721342704635,14.96,160.43,160.42,6.2336]
[1721342704842,14.96,160.44,160.42,6.2336]
[1721342705135,14.96,160.43,160.42,6.2336]
[1721342705952,14.96,160.43,160.41,21.8186]
[1721342706949,14.96,160.43,160.42,6.2336]
[1721342707352,14.96,160.43,160.41,15.5848]
[1721342707543,14.96,160.42,160.41,15.5848]
[1721342708743,57.1853,160.48,160.4,6.2341]
[1721342708936,14.96,160.41,160.4,6.2341]
[1721342709251,14.96,160.41,160.38,15.5872]
[1721342709750,14.96,160.39,160.35,15.5905]
[1721342709951,14.96,160.39,160.37,6.2354]
[1721342711551,6.2337,160.42,160.37,6.2354]
[1721342711749,14.96,160.4,160.38,7.48187471]
[1721342713652,6.1389,160.44,160.4,6.2344]
[1721342713831,6.1389,160.44,160.4,7.48113467]
[1721342714032,14.96,160.42,160.4,7.48113467]
[1721342714249,14.96,160.42,160.4,6.2344]
[1721342714436,14.96,160.42,160.39,23.06776033]
[1721342714660,14.96,160.41,160.39,23.06776033]
[1721342714831,6.1389,160.44,160.39,23.06776033]
[1721342714832,14.96,160.4,160.39,15.5864]
[1721342716058,14.96,160.4,160.37,6.2354]
[1721342716232,14.96,160.39,160.36,15.5895]
[1721342716754,14.96,160.38,160.37,7.4824655]
[1721342716946,15.1835,160.41,160.37,6.2355]
[1721342717148,14.96,160.38,160.37,6.2355]
[1721342717863,14.96,160.38,160.36,21.8254]
[1721342719440,14.96,160.38,160.37,6.2355]
[1721342719845,14.96,160.38,160.36,21.8253]
[1721342720041,14.96,160.38,160.37,6.2355]
[1721342720236,14.96,160.38,160.36,21.8253]
[1721342720836,14.96,160.37,160.36,21.8253]
[1721342721846,14.96,160.37,160.36,15.5895]
[1721342722360,14.96,160.37,160.36,21.8254]
[1721342723543,15.1835,160.41,160.36,15.5895]
[1721342723749,14.96,160.39,160.38,6.2348]
[1721342725060,14.96,160.39,160.37,6.2354]
[1721342725238,14.96,160.38,160.37,6.2354]
[1721342725443,14.96,160.38,160.36,23.07227406]
[1721342726261,14.96,160.39,160.36,23.07227406]
[1721342727360,14.96,160.39,160.36,21.8253]
[1721342728071,14.96,160.39,160.37,6.2354]
[1721342728368,14.96,160.39,160.37,7.48235694]
[1721342728871,14.96,160.39,160.37,6.2354]
[1721342729044,14.96,160.39,160.36,15.5895]
[1721342729045,30.1435,160.41,160.38,15.5875]
[1721342729247,14.96,160.41,160.39,6.2345]
[1721342729463,14.96,160.41,160.4,6.2344]
[1721342729668,14.96,160.42,160.4,6.2344]
[1721342729876,14.96,160.42,160.39,6.2346]
[1721342730055,14.96,160.41,160.39,6.2346]
[1721342730382,14.96,160.41,160.38,15.5875]
[1721342730383,6.1389,160.44,160.4,6.2343]
[1721342730545,14.96,160.42,160.4,21.82]
[1721342730748,14.96,160.41,160.4,15.5857]
[1721342730947,14.96,160.41,160.39,6.2346]
[1721342731548,14.96,160.41,160.38,6.2351]
[1721342731752,14.96,160.41,160.37,15.5882]
[1721342731753,14.96,160.4,160.37,21.8237]
[1721342733159,14.96,160.4,160.38,7.48178857]
[1721342734769,14.96,160.4,160.39,6.2348]
[1721342735161,14.96,160.42,160.4,6.2344]
[1721342735965,14.96,160.41,160.39,21.8211]
[1721342736750,6.2332,160.43,160.39,21.8211]
[1721342736962,14.96,160.41,160.39,21.8211]
[1721342737769,6.2332,160.43,160.39,21.8211]
[1721342737972,14.96,160.41,160.39,21.8211]
[1721342739453,14.96,160.41,160.36,9.13828038]
[1721342739454,14.96,160.4,160.37,7.4820986]
[1721342739669,14.96,160.38,160.36,21.8252]
[1721342740066,14.96,160.39,160.36,21.8252]
[1721342740256,14.96,160.39,160.37,6.2354]
[1721342740478,14.96,160.39,160.37,15.37368038]
[1721342740658,14.96,160.39,160.37,15.37640202]
[1721342741283,14.96,160.39,160.37,6.2354]
[1721342741575,14.96,160.39,160.37,15.37626984]
[1721342742462,14.96,160.39,160.37,9.14086984]
[1721342742776,14.96,160.38,160.36,30.96606984]
[1721342742979,14.96,160.37,160.36,30.96606984]
[1721342744014,14.96,160.37,160.36,30.96668157]
[1721342745058,14.96,160.37,160.36,24.73078157]
[1721342746457,14.96,160.37,160.36,9.14148157]
[1721342746786,22.7709,160.39,160.36,9.14148157]
[1721342746964,6.2352,160.38,160.36,9.14148157]
[1721342747180,6.2352,160.38,160.34,6.2366]
[1721342747386,6.2352,160.38,160.35,9.14169866]
[1721342748080,16.5358,160.39,160.35,15.37779866]
[1721342748081,14.96,160.37,160.35,15.37779866]
[1721342748261,14.96,160.37,160.35,15.37789866]
[1721342748466,14.96,160.37,160.36,9.14169866]
[1721342748666,14.96,160.37,160.35,15.37789866]
[1721342749284,14.96,160.37,160.35,9.14169866]
[1721342749462,14.96,160.37,160.34,15.37829866]
[1721342750562,14.96,160.37,160.35,24.72978548]
[1721342750762,14.96,160.37,160.35,30.96578548]
[1721342751069,14.96,160.37,160.35,24.72978548]
[1721342752880,14.96,160.37,160.35,30.96608548]
[1721342753680,14.96,160.37,160.35,30.9578365]
[1721342756764,14.96,160.37,160.36,6.2359]
[1721342757465,14.96,160.37,160.35,30.95738208]
[1721342757971,6.2342,160.41,160.37,6.2352]
[1721342758180,31.4252,160.43,160.38,25.33755927]
[1721342758371,14.96,160.42,160.39,21.8213]
[1721342760147,16.4652,160.43,160.39,21.8213]
[1721342760268,14.96,160.42,160.39,21.8213]
[1721342760686,14.96,160.42,160.39,15.5866]
[1721342760897,21.1941,160.41,160.37,15.36031423]
[1721342761194,14.96,160.41,160.38,10.37177847]
[1721342761801,21.1937,160.42,160.39,9.12491423]
[1721342762181,21.1937,160.42,160.38,16.60677847]
[1721342762491,14.96,160.41,160.38,16.60677847]
[1721342762678,14.96,160.42,160.38,16.60677847]
[1721342762877,14.96,160.42,160.39,9.12491423]
[1721342763359,21.1937,160.42,160.39,9.12596168]
[1721342763608,21.1941,160.41,160.38,9.12596168]
[1721342763888,21.1941,160.41,160.37,16.60826408]
[1721342764075,21.1941,160.41,160.37,15.36136168]
[1721342764279,21.1941,160.41,160.37,9.12596168]
[1721342764502,21.1941,160.41,160.37,15.36146168]
[1721342765489,21.1941,160.41,160.37,16.60836437]
[1721342765808,21.1941,160.41,160.37,15.36146168]
[1721342766179,14.96,160.41,160.38,6.2351]
[1721342767708,14.96,160.39,160.37,9.12340272]
[1721342768574,14.96,160.4,160.37,15.35890272]
[1721342768884,14.96,160.41,160.38,6.2351]
[1721342769903,14.96,160.41,160.38,15.35850272]
[1721342770402,14.96,160.42,160.39,1.24684765]
[1721342770588,21.1936,160.42,160.38,30.94600272]
[1721342770794,14.96,160.42,160.38,30.94600272]
[1721342770986,21.1936,160.42,160.38,30.94600272]
[1721342771308,21.1936,160.42,160.38,32.19279398]
[1721342771677,22.6985,160.43,160.39,21.1948]
[1721342771905,16.4652,160.43,160.4,23.06659351]
[1721342772205,22.6984,160.43,160.4,16.83243567]
[1721342772585,37.6584,160.43,160.39,9.12340272]
[1721342773078,37.6584,160.43,160.39,9.12785604]
[1721342773317,31.4252,160.43,160.39,9.12785604]
[1721342773517,31.4252,160.43,160.38,15.36295604]
[1721342775018,6.2337,160.42,160.38,15.36295604]
[1721342775387,6.2341,160.41,160.39,9.12785604]
[1721342775593,21.1937,160.42,160.39,9.12785604]
[1721342775813,6.2337,160.42,160.39,9.12785604]
[1721342776786,6.2344,160.4,160.39,9.12785604]
[1721342777010,21.194,160.41,160.38,9.12785604]
[1721342777719,14.96,160.41,160.38,15.36295604]
[1721342779003,14.96,160.42,160.38,15.36295604]
[1721342779517,14.96,160.42,160.38,15.36725818]
[1721342780400,22.6985,160.43,160.38,9.13215818]
[1721342780401,21.1948,160.39,160.38,9.13215818]
[1721342780722,21.1948,160.39,160.37,9.13215818]
[1721342781495,21.1951,160.38,160.36,9.13215818]
[1721342781700,14.96,160.37,160.35,9.13215818]
[1721342781907,14.96,160.36,160.35,9.13215818]
[1721342782112,14.96,160.36,160.34,9.13215818]
[1721342782319,14.96,160.35,160.34,9.13215818]
[1721342782511,14.96,160.36,160.34,9.13215818]
[1721342783218,14.96,160.37,160.34,15.36865818]
[1721342783412,14.96,160.37,160.35,9.13215818]
[1721342783595,14.96,160.36,160.35,9.13215818]
[1721342783794,14.96,160.37,160.35,9.13215818]
[1721342784189,14.96,160.37,160.34,9.13215818]
[1721342784712,21.1956,160.37,160.34,9.13215818]
[1721342785030,14.96,160.37,160.34,15.36875818]
[1721342785195,14.96,160.37,160.35,9.13215818]
[1721342785393,14.96,160.37,160.34,15.36875818]
[1721342785588,14.96,160.37,160.35,16.61561773]
[1721342786028,14.96,160.37,160.35,16.62783577]
[1721342786395,14.96,160.37,160.35,10.39153577]
[1721342787189,6.2349,160.39,160.35,9.14437622]
[1721342787531,6.2349,160.39,160.36,16.62713622]
[1721342787532,14.96,160.39,160.36,16.62713622]
[1721342787902,21.1949,160.39,160.36,10.39143622]
[1721342788102,21.1949,160.39,160.36,1.24706]
[1721342788310,21.1949,160.39,160.36,10.39143622]
[1721342788829,21.1949,160.39,160.36,1.24706]
[1721342789001,21.1949,160.39,160.36,10.39143622]
[1721342789264,21.1949,160.39,160.36,10.38982862]
[1721342789716,21.1949,160.39,160.36,1.24706]
[1721342790028,21.1949,160.39,160.36,10.38982862]
[1721342790717,6.2355,160.37,160.35,10.3898024]
[1721342791808,6.2352,160.38,160.35,10.3898024]
[1721342792638,6.2352,160.38,160.35,10.38934785]
[1721342792933,6.2352,160.38,160.36,1.24703537]
[1721342794021,6.2352,160.38,160.35,10.38935011]
[1721342796526,6.2352,160.38,160.35,1.24703604]
[1721342797324,6.2352,160.38,160.35,10.38935011]
[1721342799111,6.2352,160.38,160.35,10.39526994]
[1721342800532,6.2339,160.42,160.37,14.96]
[1721342800840,6.2339,160.42,160.38,25.35448682]
[1721342801426,6.2339,160.42,160.39,9.14767544]
[1721342801732,6.234,160.41,160.39,9.14557131]
[1721342802353,6.234,160.41,160.38,16.20681138]
[1721342802631,6.234,160.41,160.39,9.14493542]
[1721342803032,6.234,160.41,160.38,10.3917468]
[1721342803415,6.2348,160.39,160.38,9.14493542]
[1721342803738,6.2348,160.39,160.37,9.14493542]
[1721342804030,6.2342,160.41,160.37,9.14493542]
[1721342804221,21.1945,160.4,160.37,9.14493542]
[1721342804932,6.2349,160.39,160.37,9.14493542]
[1721342805237,14.96,160.4,160.37,9.14493542]
[1721342805661,14.96,160.4,160.36,6.2359]
[1721342805939,14.96,160.4,160.37,9.14939418]
[1721342806438,14.96,160.4,160.37,10.39631035]
[1721342807826,21.1942,160.41,160.37,10.39631035]
[1721342808224,21.1942,160.41,160.37,9.14939418]
[1721342809817,21.1942,160.41,160.37,15.38489418]
[1721342810242,14.96,160.4,160.37,9.14939418]
[1721342810742,16.4652,160.43,160.37,9.14939418]
[1721342810935,14.96,160.4,160.37,15.38459418]
[1721342811522,14.96,160.39,160.37,9.14939418]
[1721342811719,36.6161,160.38,160.36,9.14939418]
[1721342812030,6.2367,160.34,160.32,9.14939418]
[1721342812223,21.1967,160.34,160.32,9.15789449]
[1721342812422,21.1967,160.34,160.32,18.31618779]
[1721342812624,21.1967,160.34,160.32,9.1582933]
[1721342812923,21.1967,160.34,160.31,9.1582933]
[1721342813127,21.1972,160.33,160.31,9.1582933]
[1721342813549,14.96,160.34,160.31,9.1582933]
[1721342814353,21.1972,160.33,160.3,9.1582933]
[1721342814647,21.1972,160.33,160.3,10.40584222]
[1721342814823,14.96,160.33,160.31,9.1582933]
[1721342815436,14.96,160.33,160.31,9.15862597]
[1721342815644,14.96,160.33,160.3,9.15862597]
[1721342815836,14.96,160.32,160.3,9.15862597]
[1721342816129,14.96,160.32,160.3,10.40614848]
[1721342817546,14.96,160.32,160.3,1.24752251]
[1721342818141,14.96,160.31,160.29,24.75472597]
[1721342818426,14.96,160.3,160.29,9.15862597]
[1721342818625,14.96,160.3,160.28,9.15862597]
[1721342819535,14.96,160.29,160.27,6.2394]
[1721342819951,14.96,160.29,160.27,15.39802597]
[1721342820161,14.96,160.28,160.27,9.15862597]
[1721342820464,14.96,160.28,160.25,15.39872597]
[1721342820770,14.96,160.28,160.26,6.2395]
[1721342820942,14.96,160.27,160.26,7.48728662]
[1721342822344,14.96,160.27,160.25,15.5998]
[1721342822540,14.96,160.27,160.25,21.8397]
[1721342822746,14.96,160.27,160.25,23.0875147]
[1721342824765,14.96,160.27,160.25,21.8397]
[1721342825142,14.96,160.27,160.26,1.24782505]
[1721342825649,14.96,160.27,160.26,6.2398]
[1721342826478,14.96,160.27,160.25,21.8399]
[1721342826980,14.96,160.26,160.25,21.8399]
[1721342827473,14.96,160.27,160.25,21.8399]
[1721342827852,14.96,160.26,160.25,15.5998]
[1721342828388,14.96,160.26,160.24,6.2406]
[1721342828574,14.96,160.25,160.23,6.2408]
[1721342829977,14.96,160.26,160.24,6.2406]
[1721342831868,6.2391,160.28,160.24,6.2406]
[1721342832072,6.2383,160.3,160.26,6.2397]
[1721342832281,14.96,160.28,160.25,7.48794548]
[1721342832765,14.96,160.28,160.24,23.08925571]
[1721342832958,6.2387,160.29,160.24,21.8414]
[1721342833157,6.2391,160.28,160.24,23.08929391]
[1721342833366,6.2387,160.29,160.24,23.08929391]
[1721342833563,6.2387,160.29,160.24,21.8414]
[1721342833777,6.2392,160.28,160.24,21.8414]
[1721342835796,6.2392,160.28,160.23,1.24795815]
[1721342835797,14.96,160.25,160.2,6.2418]
[1721342835963,14.96,160.21,160.19,6.2424]
[1721342836170,14.96,160.21,160.2,6.2421]
[1721342836369,22.0178,160.26,160.21,6.2416]
[1721342836370,14.96,160.23,160.21,6.2416]
[1721342836673,14.96,160.23,160.22,6.2414]
[1721342836869,14.96,160.24,160.22,6.2414]
[1721342838264,14.96,160.25,160.22,6.2414]
[1721342838569,14.96,160.27,160.24,6.2403]
[1721342839190,14.96,160.27,160.23,7.48899978]
[1721342839389,14.96,160.26,160.23,7.48899978]
[1721342839693,14.96,160.26,160.23,6.2409]
[1721342840390,14.96,160.26,160.24,1.24796697]
[1721342840888,14.96,160.25,160.22,15.603]
[1721342841767,14.96,160.25,160.22,21.8443]
[1721342842488,37.614,160.3,160.24,6.2406]
[1721342842489,22.0178,160.3,160.24,6.2406]
[1721342842676,14.96,160.26,160.24,6.2406]
[1721342843065,14.96,160.26,160.23,7.48893345]
[1721342843265,14.96,160.25,160.22,15.603]
[1721342843471,14.96,160.25,160.23,1.24803721]
[1721342843982,14.96,160.25,160.22,15.603]
[1721342844991,14.96,160.25,160.23,7.48893369]
[1721342845292,14.96,160.25,160.23,6.2409]
[1721342845591,14.96,160.24,160.22,21.8443]
[1721342846570,14.96,160.23,160.22,21.8443]
[1721342849891,6.2394,160.27,160.23,6.2409]
[1721342849892,14.96,160.24,160.23,6.2409]
[1721342850088,22.0178,160.3,160.24,6.2405]
[1721342850089,14.96,160.25,160.24,6.2405]
[1721342850269,14.96,160.26,160.24,6.2405]
[1721342851493,14.96,160.26,160.23,7.48894002]
[1721342852780,14.96,160.25,160.23,7.48894002]
[1721342852983,14.96,160.25,160.22,21.8443]
[1721342853412,14.96,160.24,160.22,21.8443]
[1721342853579,14.96,160.23,160.21,6.2417]
[1721342853896,14.96,160.22,160.21,6.2417]
[1721342855093,14.96,160.22,160.19,24.7608102]
[1721342855394,14.96,160.22,160.2,6.2418]
[1721342855592,14.96,160.22,160.19,24.7608102]
[1721342855593,14.96,160.22,160.21,6.2418]
[1721342857296,14.96,160.22,160.21,15.3967102]
[1721342858986,14.96,160.22,160.21,9.1549102]
[1721342859591,14.96,160.22,160.21,15.3967102]
[1721342861492,14.96,160.22,160.21,15.39759907]
[1721342862383,14.96,160.23,160.22,6.2412]
[1721342862587,14.96,160.23,160.22,15.3974577]
[1721342863505,16.3698,160.24,160.22,6.2412]
[1721342863506,31.3298,160.24,160.22,6.2412]
[1721342863802,31.3298,160.24,160.23,9.15648454]
[1721342864499,31.3298,160.24,160.23,6.241]
[1721342864685,31.3298,160.24,160.23,15.39652988]
[1721342865290,31.3298,160.24,160.21,21.8454]
[1721342865497,31.3298,160.24,160.22,9.1552805]
[1721342866501,31.3298,160.24,160.22,15.3966805]
[1721342867388,31.3298,160.24,160.23,9.1552805]
[1721342867389,14.96,160.24,160.23,9.1552805]
[1721342867901,14.96,160.24,160.22,15.3966805]
[1721342868910,14.96,160.24,160.23,9.1552805]
[1721342869093,14.96,160.24,160.23,15.3962805]
[1721342870198,14.96,160.24,160.23,9.1552805]
[1721342871002,14.96,160.24,160.22,6.2412]
[1721342871200,14.96,160.24,160.23,9.15669733]
[1721342874113,14.96,160.24,160.22,15.39789733]
[1721342874310,14.96,160.24,160.22,15.39503621]
[1721342875918,14.96,160.24,160.23,9.15383621]
[1721342876212,14.96,160.24,160.22,15.39503621]
[1721342877510,6.2399,160.26,160.22,15.39503621]
[1721342877717,14.96,160.23,160.22,15.38871046]
[1721342879214,14.96,160.23,160.22,6.2412]
[1721342881330,14.96,160.24,160.22,6.2412]
[1721342881634,14.96,160.24,160.23,15.38248258]
[1721342882114,14.96,160.24,160.23,9.14148258]
[1721342882318,21.2006,160.24,160.23,9.14148258]
[1721342882813,14.96,160.24,160.23,9.14148258]
[1721342883198,14.96,160.24,160.22,9.14148258]
[1721342883399,14.96,160.23,160.22,9.14148258]
[1721342883832,21.201,160.23,160.22,9.14148258]
[1721342884018,22.3342,160.21,160.2,9.14148258]
[1721342884201,31.0524,160.21,160.18,9.14351882]
[1721342884516,6.2434,160.17,160.14,9.14351882]
[1721342884820,14.96,160.15,160.13,6.2448]
[1721342885121,14.96,160.14,160.13,6.2448]
[1721342886012,14.96,160.14,160.1,9.14351882]
[1721342886217,14.96,160.14,160.07,9.14351882]
[1721342886218,14.96,160.11,160.07,9.14351882]
[1721342886422,15.1662,160.14,160.06,1.24919477]
[1721342886423,14.96,160.08,160.06,1.24919477]
[1721342886719,14.96,160.07,160.05,46.8578]
[1721342887019,14.96,160.07,160.05,48.10721491]
[1721342889710,14.96,160.08,160.07,6.2471]
[1721342891721,14.96,160.08,160.06,6.2475]
[1721342892019,14.96,160.07,160.06,6.2475]
[1721342892612,14.96,160.07,160.05,21.8673]
[1721342892815,14.96,160.06,160.05,21.8673]
[1721342894917,14.96,160.06,160.05,15.6193]
[1721342896435,14.96,160.06,160.03,6.2487]
[1721342896634,14.96,160.04,160.03,6.2487]
[1721342897929,16.6361,160.07,160.04,6.2484]
[1721342898108,14.96,160.05,160.04,6.2484]
[1721342898924,21.5498,160.05,160.03,6.2487]
[1721342899107,21.5498,160.05,160.02,16.4365836]
[1721342899108,14.96,160.04,160.02,16.4365836]
[1721342899311,14.96,160.03,160.02,16.4365836]
[1721342899623,14.96,160.03,160.02,22.6857836]
[1721342899929,14.96,160.06,160.05,6.2476]
[1721342901028,16.6361,160.07,160.04,15.6204]
[1721342901230,6.5898,160.09,160.07,21.8652]
[1721342901527,14.96,160.08,160.07,21.8652]
[1721342901928,14.96,160.08,160.07,15.6181]
[1721342902723,14.96,160.08,160.07,21.8653]
[1721342903621,14.96,160.08,160.07,15.6181]
[1721342905223,14.96,160.08,160.06,6.2475]
[1721342905424,14.96,160.07,160.04,15.6203]
[1721342905625,14.96,160.06,160.04,21.8684]
[1721342905825,14.96,160.07,160.05,6.248]
[1721342906822,14.96,160.06,160.04,21.8686]
[1721342907023,15.5734,160.11,160.04,15.6203]
[1721342907024,14.96,160.05,160.04,15.6203]
[1721342909839,14.96,160.05,160.03,6.2486]
[1721342910028,14.96,160.04,160.03,6.2486]
[1721342911739,14.96,160.04,160.02,7.0633836]
[1721342911931,14.96,160.03,160.02,7.0634836]
[1721342914636,14.96,160.04,160.03,21.87]
[1721342915326,14.96,160.05,160.04,6.248]
[1721342916747,34.3234,160.11,160.05,15.6197]
[1721342916748,22.085,160.11,160.05,15.6197]
[1721342917049,14.96,160.06,160.05,21.8677]
[1721342917429,14.96,160.07,160.06,6.2475]
[1721342917953,22.085,160.11,160.07,6.2471]
[1721342918154,22.085,160.11,160.06,6.2475]
[1721342918155,14.96,160.08,160.06,6.2475]
[1721342918350,14.96,160.07,160.05,21.8676]
[1721342918533,14.96,160.06,160.05,15.6197]
[1721342919435,14.96,160.06,160.05,21.8677]
[1721342919749,22.085,160.11,160.07,6.247]
[1721342919936,14.96,160.08,160.07,6.247]
[1721342926044,15.552,160.14,160.07,31.2353]
[1721342926249,14.96,160.12,160.11,15.6137]
[1721342926455,14.96,160.12,160.11,21.8594]
[1721342926944,14.96,160.12,160.11,15.6137]
[1721342927142,16.5208,160.16,160.11,15.6137]
[1721342927357,16.5208,160.16,160.13,6.2448]
[1721342927852,16.5208,160.16,160.14,6.2444]
[1721342929153,16.5208,160.16,160.13,21.8566]
[1721342929349,14.96,160.14,160.13,21.8566]
[1721342930349,14.96,160.14,160.13,15.6117]
[1721342930548,16.5208,160.16,160.14,6.2445]
[1721342930758,14.96,160.15,160.14,6.2445]
[1721342932657,14.96,160.15,160.13,21.8565]
[1721342932860,14.96,160.14,160.13,21.8565]
[1721342933063,14.96,160.14,160.13,15.6117]
[1721342933255,14.96,160.14,160.13,21.8566]
[1721342936765,14.96,160.15,160.14,6.2444]
[1721342939247,14.96,160.16,160.15,6.2439]
[1721342940451,14.96,160.16,160.14,6.2443]
[1721342940972,6.2429,160.18,160.14,6.2443]
[1721342941147,14.96,160.15,160.14,6.2443]
[1721342941850,14.96,160.15,160.13,21.8565]
[1721342942052,14.96,160.14,160.13,21.8565]
[1721342942564,14.96,160.14,160.11,6.2453]
[1721342942762,14.96,160.12,160.11,6.2453]
[1721342944666,14.96,160.12,160.1,15.6147]
[1721342944972,6.2442,160.15,160.1,15.6147]
[1721342945273,14.96,160.11,160.1,21.8607]
[1721342948274,14.96,160.11,160.09,6.2463]
[1721342948475,14.96,160.1,160.09,6.2463]
[1721342948663,14.96,160.1,160.08,6.2468]
[1721342948863,14.96,160.09,160.08,6.2468]
[1721342949065,14.96,160.09,160.04,15.6205]
[1721342949270,14.96,160.05,160.04,15.6205]
[1721342950166,14.96,160.05,160.04,21.8688]
[1721342950990,14.96,160.06,160.05,6.248]
[1721342952271,15.2761,160.09,160.04,15.6205]
[1721342952272,14.96,160.08,160.07,6.2472]
[1721342952467,30.2361,160.09,160.06,15.6183]
[1721342952975,14.96,160.09,160.08,6.2468]
[1721342953272,21.3606,160.13,160.09,15.6156]
[1721342953273,15.1157,160.13,160.09,15.6156]
[1721342953502,14.96,160.11,160.1,6.246]
[1721342955162,15.1157,160.13,160.11,6.2454]
[1721342955362,14.96,160.12,160.11,6.2454]
[1721342955659,14.96,160.12,160.1,6.2459]
[1721342956500,14.96,160.12,160.11,6.2457]
[1721342957478,14.96,160.12,160.1,6.2459]
[1721342957691,14.96,160.11,160.1,6.2459]
[1721342959288,14.96,160.11,160.09,15.6156]
[1721342959583,15.1157,160.13,160.09,21.8617]
[1721342959767,14.96,160.1,160.09,21.8617]
[1721342960385,14.96,160.1,160.09,15.6156]
[1721342960997,14.96,160.1,160.07,6.2472]
[1721342961180,14.96,160.08,160.06,15.6184]
[1721342961381,14.96,160.07,160.06,21.8657]
[1721342961792,14.96,160.07,160.06,15.6184]
[1721342962001,14.96,160.07,160.06,21.8659]
[1721342962170,14.96,160.08,160.06,21.8659]
[1721342962905,14.96,160.07,160.06,21.8659]
[1721342964380,14.96,160.08,160.07,6.2471]
[1721342965784,14.96,160.08,160.06,21.8659]
[1721342965980,14.96,160.07,160.06,21.866]
[1721342966208,6.2461,160.1,160.06,21.866]
[1721342966389,14.96,160.07,160.06,21.866]
[1721342967792,14.96,160.07,160.06,15.6184]
[1721342968108,14.96,160.07,160.05,6.2479]
[1721342968315,14.96,160.06,160.05,6.2479]
[1721342969008,14.96,160.06,160.04,6.2484]
[1721342969194,14.96,160.05,160.04,6.2484]
[1721342969880,14.96,160.05,160.03,15.6214]
[1721342970080,14.96,160.05,160.03,21.8699]
[1721342970488,14.96,160.05,160.04,6.2484]
[1721342970911,14.96,160.05,160.03,21.8701]
[1721342971815,14.96,160.05,160.04,6.2484]
[1721342975908,14.96,160.05,160.03,21.8701]
[1721342976591,14.96,160.04,160.03,21.8701]
[1721342979002,14.96,160.04,160.03,15.6214]
[1721342979601,14.96,160.04,160.03,21.8702]
[1721342981201,14.96,160.04,160.02,7.0632836]
[1721342981402,14.96,160.03,160.02,7.0632836]
[1721342984215,22.8505,160.07,160.03,6.2487]
[1721342984409,16.6031,160.07,160.04,6.2484]
[1721342984608,14.96,160.05,160.03,6.2487]
[1721342984810,14.96,160.04,160.03,6.2487]
[1721342985804,15.6154,160.1,160.06,6.2476]
[1721342985805,6.2464,160.1,160.06,6.2476]
[1721342986124,14.96,160.07,160.06,6.2476]
[1721342986325,14.96,160.08,160.06,6.2476]
[1721342987031,15.3878,160.11,160.06,15.6184]
[1721342987212,14.96,160.08,160.07,6.2471]
[1721342990338,36.1671,160.08,160.04,6.2481]
[1721342990513,14.96,160.05,160.04,6.2481]
[1721342991133,14.96,160.05,160.03,21.8704]
[1721342991333,14.96,160.04,160.03,21.8704]
[1721342991817,6.2473,160.07,160.03,21.8704]
[1721342992024,66.0869,160.08,160.04,6.2484]
[1721342992336,14.96,160.05,160.04,6.2484]
[1721342993035,14.96,160.06,160.05,6.248]
[1721343000433,14.96,160.06,160.03,15.6217]